[Event "*** MasterClass Titled Tuesday Blitz"]
[Site "Chess.com"]
[Date "2017.10.03"]
[Round "2"]
[White "iusegine"]
[Black "SantoBlue"]
[Result "0-1"]
[WhiteElo "2298"]
[BlackElo "2550"]
[TimeControl "180+2"]
[EndTime "13:22:35 PDT"]
[Termination "SantoBlue won by resignation"]

1. d4 {[%clk 0:03:01.9]} 1... Nf6 {[%clk 0:03:00]} 2. c4 {[%clk 0:03:01.8]} 2...
e6 {[%clk 0:03:01.9]} 3. Nf3 {[%clk 0:03:02.4]} 3... b6 {[%clk 0:02:58]} 4. e3
{[%clk 0:03:02.3]} 4... Bb7 {[%clk 0:02:56.4]} 5. Nc3 {[%clk 0:03:03.1]} 5...
Be7 {[%clk 0:02:57.3]} 6. Bd3 {[%clk 0:03:03.4]} 6... O-O {[%clk 0:02:57]} 7. e4
{[%clk 0:03:03.3]} 7... d5 {[%clk 0:02:57.4]} 8. cxd5 {[%clk 0:02:57.4]} 8...
exd5 {[%clk 0:02:59.3]} 9. e5 {[%clk 0:02:57.3]} 9... Ne4 {[%clk 0:02:59.5]} 10.
Qc2 {[%clk 0:02:57.7]} 10... Bb4 {[%clk 0:02:29.3]} 11. O-O {[%clk 0:02:57.5]}
11... Bxc3 {[%clk 0:02:30.2]} 12. bxc3 {[%clk 0:02:58.7]} 12... c5 {[%clk
0:02:27.6]} 13. Nd2 {[%clk 0:02:51]} 13... f5 {[%clk 0:02:24.2]} 14. exf6 {[%clk
0:02:45.9]} 14... Nxf6 {[%clk 0:02:24.2]} 15. dxc5 {[%clk 0:02:32.9]} 15... bxc5
{[%clk 0:02:20.7]} 16. Rb1 {[%clk 0:02:34.4]} 16... Bc6 {[%clk 0:02:20.4]} 17.
c4 {[%clk 0:02:33.8]} 17... d4 {[%clk 0:02:20.6]} 18. Nb3 {[%clk 0:02:11.1]}
18... Nbd7 {[%clk 0:02:21.1]} 19. Ba3 {[%clk 0:02:11.8]} 19... Nh5 {[%clk
0:02:10.3]} 20. Bxh7+ {[%clk 0:01:59.8]} 20... Kh8 {[%clk 0:02:11.1]} 21. Be4
{[%clk 0:02:01.2]} 21... Bxe4 {[%clk 0:02:03.8]} 22. Qxe4 {[%clk 0:02:03.1]}
22... Qg5 {[%clk 0:02:05.3]} 23. Qd5 {[%clk 0:01:50.8]} 23... Ne5 {[%clk
0:01:37.9]} 24. Bc1 {[%clk 0:01:03.2]} 24... Qf5 {[%clk 0:00:53.4]} 25. Bd2
{[%clk 0:00:47.2]} 25... Rad8 {[%clk 0:00:53.5]} 26. Qxc5 {[%clk 0:00:46.2]}
26... Rfe8 {[%clk 0:00:26.6]} 27. Rbe1 {[%clk 0:00:43.8]} 27... Nf6 {[%clk
0:00:22.6]} 28. Nxd4 {[%clk 0:00:43.5]} 28... Nf3+ {[%clk 0:00:22.4]} 0-1

[Event "*** MasterClass Titled Tuesday Blitz"]
[Site "Chess.com"]
[Date "2017.10.03"]
[Round "2"]
[White "PrinceMurad09"]
[Black "chessking2151"]
[Result "0-1"]
[WhiteElo "2323"]
[BlackElo "2366"]
[TimeControl "180+2"]
[EndTime "13:22:51 PDT"]
[Termination "chessking2151 won by resignation"]

1. e4 {[%clk 0:03:01.9]} 1... e5 {[%clk 0:03:00.3]} 2. Nf3 {[%clk 0:02:59.4]}
2... Nc6 {[%clk 0:02:58.7]} 3. Bb5 {[%clk 0:03:00.4]} 3... a6 {[%clk 0:02:56.9]}
4. Bxc6 {[%clk 0:03:00.9]} 4... dxc6 {[%clk 0:02:58.7]} 5. O-O {[%clk
0:03:01.2]} 5... f6 {[%clk 0:02:58.1]} 6. d3 {[%clk 0:03:02]} 6... Bd6 {[%clk
0:02:52.1]} 7. a4 {[%clk 0:03:03.9]} 7... Ne7 {[%clk 0:02:52.4]} 8. b3 {[%clk
0:03:03.7]} 8... O-O {[%clk 0:02:52.4]} 9. Bb2 {[%clk 0:03:04]} 9... c5 {[%clk
0:02:46.7]} 10. Nbd2 {[%clk 0:03:04.7]} 10... Be6 {[%clk 0:02:46.6]} 11. Qe2
{[%clk 0:03:02.6]} 11... Nc6 {[%clk 0:02:46.1]} 12. Nc4 {[%clk 0:02:56.1]} 12...
Nd4 {[%clk 0:02:44.4]} 13. Nxd4 {[%clk 0:02:36]} 13... cxd4 {[%clk 0:02:46.3]}
14. Nxd6 {[%clk 0:02:33.5]} 14... Qxd6 {[%clk 0:02:45.1]} 15. Kh1 {[%clk
0:02:28.8]} 15... c5 {[%clk 0:02:45.3]} 16. a5 {[%clk 0:02:27.9]} 16... Rfb8
{[%clk 0:02:26.9]} 17. Bc1 {[%clk 0:02:21.1]} 17... b5 {[%clk 0:02:22.2]} 18.
axb6 {[%clk 0:02:21.8]} 18... Rxb6 {[%clk 0:02:19.2]} 19. Bd2 {[%clk 0:02:22.2]}
19... Rb5 {[%clk 0:02:04.9]} 20. f4 {[%clk 0:02:19.6]} 20... Bd7 {[%clk
0:02:02.4]} 21. Qf2 {[%clk 0:02:12.8]} 21... a5 {[%clk 0:02:00]} 22. Qg3 {[%clk
0:02:11.8]} 22... a4 {[%clk 0:01:51.7]} 23. fxe5 {[%clk 0:01:54.6]} 23... Qxe5
{[%clk 0:01:51.5]} 24. Bf4 {[%clk 0:01:54.6]} 24... Qe6 {[%clk 0:01:46.6]} 25.
Bh6 {[%clk 0:01:34.8]} 25... Qg4 {[%clk 0:01:39.8]} 26. Qd6 {[%clk 0:01:28.1]}
26... Rc8 {[%clk 0:00:28.6]} 27. Rxa4 {[%clk 0:00:45.6]} 27... Rb7 {[%clk
0:00:19.3]} 28. Bf4 {[%clk 0:00:39.3]} 28... Bxa4 {[%clk 0:00:19.1]} 29. Qd5+
{[%clk 0:00:37.3]} 29... Rf7 {[%clk 0:00:19.8]} 30. bxa4 {[%clk 0:00:37.9]}
30... Qd7 {[%clk 0:00:20.7]} 31. Qc4 {[%clk 0:00:38.3]} 31... Ra8 {[%clk
0:00:20.4]} 32. Ra1 {[%clk 0:00:39]} 32... g5 {[%clk 0:00:21.2]} 33. Bg3 {[%clk
0:00:39.4]} 33... Ra5 {[%clk 0:00:21.7]} 34. Be1 {[%clk 0:00:39.7]} 34... Ra8
{[%clk 0:00:22.2]} 35. Qxc5 {[%clk 0:00:41.1]} 35... Rc8 {[%clk 0:00:23.4]} 36.
Qxd4 {[%clk 0:00:40.8]} 36... Qxd4 {[%clk 0:00:23.7]} 0-1

[Event "*** MasterClass Titled Tuesday Blitz"]
[Site "Chess.com"]
[Date "2017.10.03"]
[Round "2"]
[White "Kirill_Klukin"]
[Black "Cayse"]
[Result "0-1"]
[WhiteElo "2497"]
[BlackElo "2659"]
[TimeControl "180+2"]
[EndTime "13:22:52 PDT"]
[Termination "Cayse won by resignation"]

1. Nf3 {[%clk 0:03:01]} 1... d5 {[%clk 0:02:59.3]} 2. d4 {[%clk 0:02:58.9]} 2...
Nf6 {[%clk 0:02:58.7]} 3. c4 {[%clk 0:02:59.8]} 3... e6 {[%clk 0:02:59]} 4. Nc3
{[%clk 0:02:58.4]} 4... Nbd7 {[%clk 0:02:59]} 5. Bg5 {[%clk 0:02:58.8]} 5... h6
{[%clk 0:02:58.3]} 6. Bh4 {[%clk 0:02:59.4]} 6... Be7 {[%clk 0:02:59.2]} 7. e3
{[%clk 0:03:00.4]} 7... O-O {[%clk 0:02:58.8]} 8. Qc2 {[%clk 0:03:01.3]} 8... c5
{[%clk 0:02:54.7]} 9. cxd5 {[%clk 0:03:01.3]} 9... Nxd5 {[%clk 0:02:54.6]} 10.
Bxe7 {[%clk 0:02:59.1]} 10... Qxe7 {[%clk 0:02:49.5]} 11. Nxd5 {[%clk
0:02:59.7]} 11... exd5 {[%clk 0:02:50]} 12. dxc5 {[%clk 0:02:58.6]} 12... Nxc5
{[%clk 0:02:50.4]} 13. Be2 {[%clk 0:02:59.2]} 13... Bg4 {[%clk 0:02:50.4]} 14.
Nd4 {[%clk 0:02:58.1]} 14... Bd7 {[%clk 0:02:20.5]} 15. O-O {[%clk 0:02:58.2]}
15... Rac8 {[%clk 0:02:21]} 16. Rfd1 {[%clk 0:02:43.7]} 16... a6 {[%clk
0:02:14]} 17. Rac1 {[%clk 0:02:17.5]} 17... Rfd8 {[%clk 0:01:52.3]} 18. Bf3
{[%clk 0:02:17.6]} 18... Ne4 {[%clk 0:01:42.3]} 19. Qb3 {[%clk 0:02:03.9]} 19...
Rxc1 {[%clk 0:01:39.6]} 20. Rxc1 {[%clk 0:02:04.4]} 20... Nd2 {[%clk 0:01:35.9]}
21. Qxb7 {[%clk 0:01:51.8]} 21... Nxf3+ {[%clk 0:01:26]} 22. Nxf3 {[%clk
0:01:50.1]} 22... Qd6 {[%clk 0:01:25.6]} 23. Qc7 {[%clk 0:01:40.9]} 23... Qf6
{[%clk 0:01:26.5]} 24. Ne5 {[%clk 0:01:30.7]} 24... Be6 {[%clk 0:01:13.2]} 25.
Nd3 {[%clk 0:00:26.9]} 25... d4 {[%clk 0:01:09]} 26. e4 {[%clk 0:00:25.3]} 26...
Rc8 {[%clk 0:01:09]} 27. Qb6 {[%clk 0:00:22.6]} 27... Rxc1+ {[%clk 0:01:08.9]}
28. Nxc1 {[%clk 0:00:24.5]} 28... Qf4 {[%clk 0:01:10.1]} 29. Qd8+ {[%clk
0:00:13.8]} 29... Kh7 {[%clk 0:01:10]} 30. Ne2 {[%clk 0:00:07.4]} 30... Qxe4
{[%clk 0:01:03]} 31. Qxd4 {[%clk 0:00:05.2]} 31... Qb1+ {[%clk 0:00:55.3]} 0-1

[Event "*** MasterClass Titled Tuesday Blitz"]
[Site "Chess.com"]
[Date "2017.10.03"]
[Round "2"]
[White "shepi13"]
[Black "XiaoKangZhong"]
[Result "1-0"]
[WhiteElo "2007"]
[BlackElo "1983"]
[TimeControl "180+2"]
[EndTime "13:22:55 PDT"]
[Termination "shepi13 won by checkmate"]

1. d4 {[%clk 0:03:01.9]} 1... Nf6 {[%clk 0:02:59.9]} 2. c4 {[%clk 0:03:02.7]}
2... g6 {[%clk 0:03:00.6]} 3. Nf3 {[%clk 0:03:03.5]} 3... Bg7 {[%clk 0:03:00.8]}
4. Nc3 {[%clk 0:03:03.8]} 4... d5 {[%clk 0:03:01.9]} 5. cxd5 {[%clk 0:03:04.5]}
5... Nxd5 {[%clk 0:03:01.7]} 6. e4 {[%clk 0:03:05.9]} 6... Nxc3 {[%clk 0:03:02]}
7. bxc3 {[%clk 0:03:07.8]} 7... c5 {[%clk 0:03:02.8]} 8. Rb1 {[%clk 0:03:06.7]}
8... O-O {[%clk 0:02:59.4]} 9. Be2 {[%clk 0:03:06.7]} 9... Nc6 {[%clk
0:02:59.3]} 10. d5 {[%clk 0:03:06.7]} 10... Bxc3+ {[%clk 0:02:52.6]} 11. Bd2
{[%clk 0:03:06.4]} 11... Bxd2+ {[%clk 0:02:53.1]} 12. Qxd2 {[%clk 0:03:07.4]}
12... Nd4 {[%clk 0:02:54.2]} 13. Nxd4 {[%clk 0:03:05.1]} 13... cxd4 {[%clk
0:02:55.1]} 14. Qxd4 {[%clk 0:02:32.4]} 14... Qa5+ {[%clk 0:02:53.1]} 15. Qd2
{[%clk 0:02:31.8]} 15... Qxd2+ {[%clk 0:02:52.8]} 16. Kxd2 {[%clk 0:02:33.3]}
16... Rd8 {[%clk 0:02:53.7]} 17. Ke3 {[%clk 0:02:28.3]} 17... b6 {[%clk
0:02:53.4]} 18. Rbc1 {[%clk 0:02:25.8]} 18... Kf8 {[%clk 0:02:49.9]} 19. Rc7
{[%clk 0:02:21.9]} 19... Rd7 {[%clk 0:02:50.4]} 20. Rhc1 {[%clk 0:02:21.2]}
20... Rxc7 {[%clk 0:02:50.7]} 21. Rxc7 {[%clk 0:02:21.2]} 21... Ke8 {[%clk
0:02:51.9]} 22. e5 {[%clk 0:02:05.8]} 22... a5 {[%clk 0:02:25.9]} 23. Bb5+
{[%clk 0:01:58.1]} 23... Kf8 {[%clk 0:02:21.4]} 24. d6 {[%clk 0:01:48.5]} 24...
exd6 {[%clk 0:02:20.2]} 25. exd6 {[%clk 0:01:49.2]} 25... Be6 {[%clk 0:02:21.1]}
26. a4 {[%clk 0:01:14.7]} 26... Rd8 {[%clk 0:02:16.8]} 27. Rc6 {[%clk
0:01:15.6]} 27... Rb8 {[%clk 0:02:11.6]} 28. Kd4 {[%clk 0:01:09]} 28... f6
{[%clk 0:02:06.8]} 29. Rc7 {[%clk 0:00:50.2]} 29... Rd8 {[%clk 0:02:06.9]} 30.
Rc6 {[%clk 0:00:27.7]} 30... Rb8 {[%clk 0:02:04.8]} 31. Bc4 {[%clk 0:00:19.6]}
31... Bxc4 {[%clk 0:01:32.8]} 32. Kxc4 {[%clk 0:00:20.3]} 32... Ke8 {[%clk
0:01:29.1]} 33. Kb5 {[%clk 0:00:20.8]} 33... Kd7 {[%clk 0:01:29.1]} 34. Rxb6
{[%clk 0:00:21.1]} 34... Rxb6+ {[%clk 0:01:28.6]} 35. Kxb6 {[%clk 0:00:22.2]}
35... Kxd6 {[%clk 0:01:29.9]} 36. Kxa5 {[%clk 0:00:23.3]} 36... Kc5 {[%clk
0:01:31.3]} 37. Ka6 {[%clk 0:00:24.1]} 37... Kc6 {[%clk 0:01:32.4]} 38. a5
{[%clk 0:00:23.3]} 38... h6 {[%clk 0:01:32.7]} 39. g4 {[%clk 0:00:21]} 39... f5
{[%clk 0:01:29.2]} 40. gxf5 {[%clk 0:00:21.8]} 40... gxf5 {[%clk 0:01:29.8]} 41.
f4 {[%clk 0:00:22.6]} 41... h5 {[%clk 0:01:28.3]} 42. h4 {[%clk 0:00:23.3]}
42... Kc7 {[%clk 0:01:28.8]} 43. Kb5 {[%clk 0:00:24]} 43... Kb7 {[%clk
0:01:30.2]} 44. Kc5 {[%clk 0:00:25.2]} 44... Ka6 {[%clk 0:01:30.9]} 45. Kd5
{[%clk 0:00:26.9]} 45... Kxa5 {[%clk 0:01:32.8]} 46. Ke5 {[%clk 0:00:28.3]}
46... Kb5 {[%clk 0:01:34.7]} 47. Kxf5 {[%clk 0:00:29.7]} 47... Kc5 {[%clk
0:01:36.6]} 48. Kg6 {[%clk 0:00:30.8]} 48... Kd5 {[%clk 0:01:38.5]} 49. f5
{[%clk 0:00:31.9]} 49... Ke5 {[%clk 0:01:37.1]} 50. f6 {[%clk 0:00:32.8]} 50...
Kf4 {[%clk 0:01:38.3]} 51. f7 {[%clk 0:00:33.9]} 51... Kg4 {[%clk 0:01:39.5]}
52. f8=Q {[%clk 0:00:35.1]} 52... Kxh4 {[%clk 0:01:40.9]} 53. Qf4+ {[%clk
0:00:33.8]} 53... Kh3 {[%clk 0:01:41.8]} 54. Kxh5 {[%clk 0:00:34.8]} 54... Kg2
{[%clk 0:01:42.6]} 55. Kg4 {[%clk 0:00:34.8]} 55... Kh1 {[%clk 0:01:43.4]} 56.
Qd2 {[%clk 0:00:35.3]} 56... Kg1 {[%clk 0:01:44]} 57. Kg3 {[%clk 0:00:36.1]}
57... Kf1 {[%clk 0:01:45.1]} 58. Qd1# {[%clk 0:00:36.9]} 1-0

[Event "*** MasterClass Titled Tuesday Blitz"]
[Site "Chess.com"]
[Date "2017.10.03"]
[Round "2"]
[White "51616516516"]
[Black "pawnwonder"]
[Result "1-0"]
[WhiteElo "2045"]
[BlackElo "1965"]
[TimeControl "180+2"]
[EndTime "13:23:02 PDT"]
[Termination "51616516516 won by resignation"]

1. d4 {[%clk 0:03:01.9]} 1... Nf6 {[%clk 0:02:58.2]} 2. c4 {[%clk 0:03:02.5]}
2... g6 {[%clk 0:02:58.3]} 3. Nf3 {[%clk 0:03:02.5]} 3... Bg7 {[%clk 0:02:59]}
4. g3 {[%clk 0:02:59.4]} 4... O-O {[%clk 0:02:59]} 5. Bg2 {[%clk 0:03:00.8]}
5... d6 {[%clk 0:02:59.7]} 6. O-O {[%clk 0:03:02]} 6... c5 {[%clk 0:03:00.4]} 7.
Nc3 {[%clk 0:03:02]} 7... Nc6 {[%clk 0:03:01.3]} 8. dxc5 {[%clk 0:03:01.4]} 8...
dxc5 {[%clk 0:03:00.9]} 9. Be3 {[%clk 0:03:03]} 9... Be6 {[%clk 0:03:01.1]} 10.
Qa4 {[%clk 0:02:44.1]} 10... Nd7 {[%clk 0:01:59.1]} 11. Rfd1 {[%clk 0:02:37.1]}
11... Qc7 {[%clk 0:01:55.5]} 12. Ng5 {[%clk 0:02:15.8]} 12... Nb6 {[%clk
0:01:55]} 13. Nxe6 {[%clk 0:02:05.7]} 13... fxe6 {[%clk 0:01:50.6]} 14. Qb5
{[%clk 0:02:06.3]} 14... Nd4 {[%clk 0:01:40.9]} 15. Bxd4 {[%clk 0:01:51.4]}
15... cxd4 {[%clk 0:01:35.4]} 16. Ne4 {[%clk 0:01:48.6]} 16... Qxc4 {[%clk
0:01:35.7]} 17. Qxc4 {[%clk 0:01:41.1]} 17... Nxc4 {[%clk 0:01:35.6]} 18. Nc5
{[%clk 0:01:43]} 18... Nd6 {[%clk 0:01:24.1]} 19. Nxe6 {[%clk 0:01:40.9]} 19...
Rfc8 {[%clk 0:01:14.5]} 20. Nxg7 {[%clk 0:01:01.6]} 20... Kxg7 {[%clk
0:01:14.2]} 21. Rxd4 {[%clk 0:01:00.7]} 21... Rc2 {[%clk 0:01:10.6]} 22. Rb4
{[%clk 0:01:01.4]} 22... Rxe2 {[%clk 0:01:05.7]} 23. Rc1 {[%clk 0:01:00]} 23...
Rb8 {[%clk 0:00:57.9]} 24. Rc7 {[%clk 0:00:58.7]} 24... Re1+ {[%clk 0:00:58.7]}
25. Bf1 {[%clk 0:00:58.3]} 25... Kf7 {[%clk 0:00:57.5]} 26. Kg2 {[%clk
0:00:50.5]} 26... a6 {[%clk 0:00:26.5]} 27. Bxa6 {[%clk 0:00:50.5]} 27... b5
{[%clk 0:00:23.1]} 28. a4 {[%clk 0:00:47.8]} 28... Ra8 {[%clk 0:00:22.2]} 29.
Bxb5 {[%clk 0:00:47.5]} 29... Nxb5 {[%clk 0:00:21.5]} 30. axb5 {[%clk
0:00:49.4]} 30... Rb8 {[%clk 0:00:23.4]} 31. b6 {[%clk 0:00:50.4]} 31... Re6
{[%clk 0:00:23.1]} 32. b7 {[%clk 0:00:51.1]} 32... Rd6 {[%clk 0:00:21]} 33. Rc8
{[%clk 0:00:48.8]} 33... Rd8 {[%clk 0:00:21.5]} 34. Rxd8 {[%clk 0:00:49.9]}
34... Rxd8 {[%clk 0:00:23]} 35. b8=Q {[%clk 0:00:51.4]} 35... Rxb8 {[%clk
0:00:24.5]} 1-0

[Event "*** MasterClass Titled Tuesday Blitz"]
[Site "Chess.com"]
[Date "2017.10.03"]
[Round "2"]
[White "BogdanDeac"]
[Black "Zufi1811"]
[Result "1-0"]
[WhiteElo "2638"]
[BlackElo "2412"]
[TimeControl "180+2"]
[EndTime "13:23:05 PDT"]
[Termination "BogdanDeac won on time"]

1. d4 {[%clk 0:03:01.9]} 1... Nf6 {[%clk 0:03:00.4]} 2. g3 {[%clk 0:03:02.7]}
2... e6 {[%clk 0:02:57.9]} 3. Bg2 {[%clk 0:03:02.9]} 3... d5 {[%clk 0:02:59.8]}
4. c4 {[%clk 0:03:00.5]} 4... Bb4+ {[%clk 0:03:00.4]} 5. Bd2 {[%clk 0:03:00]}
5... Be7 {[%clk 0:03:01.9]} 6. Nf3 {[%clk 0:02:58]} 6... c6 {[%clk 0:03:03.4]}
7. b3 {[%clk 0:02:58.1]} 7... Nbd7 {[%clk 0:03:04.1]} 8. Nc3 {[%clk 0:02:58.5]}
8... O-O {[%clk 0:03:03.6]} 9. Qc2 {[%clk 0:02:58.9]} 9... b6 {[%clk 0:03:04.8]}
10. e4 {[%clk 0:02:59.6]} 10... Bb7 {[%clk 0:02:52.5]} 11. e5 {[%clk 0:02:48.7]}
11... Ne8 {[%clk 0:02:51.2]} 12. O-O {[%clk 0:02:49.5]} 12... Rc8 {[%clk
0:02:49.1]} 13. Rfe1 {[%clk 0:02:46.5]} 13... Nc7 {[%clk 0:02:44.4]} 14. h4
{[%clk 0:02:38.7]} 14... h6 {[%clk 0:02:34.1]} 15. Rad1 {[%clk 0:02:35.2]} 15...
c5 {[%clk 0:02:32.6]} 16. Bf4 {[%clk 0:02:26.1]} 16... dxc4 {[%clk 0:01:55.6]}
17. bxc4 {[%clk 0:02:21.3]} 17... cxd4 {[%clk 0:01:54.1]} 18. Nxd4 {[%clk
0:02:17.4]} 18... Bxg2 {[%clk 0:01:56]} 19. Kxg2 {[%clk 0:02:18.4]} 19... Qe8
{[%clk 0:01:54.3]} 20. Nc6 {[%clk 0:02:12.1]} 20... Nc5 {[%clk 0:01:01.9]} 21.
Nxa7 {[%clk 0:02:03.4]} 21... Ra8 {[%clk 0:01:02.5]} 22. Nab5 {[%clk 0:02:03.7]}
22... Nxb5 {[%clk 0:01:00.2]} 23. cxb5 {[%clk 0:02:03.4]} 23... Ra3 {[%clk
0:00:59.5]} 24. Bc1 {[%clk 0:01:52.7]} 24... Ra5 {[%clk 0:00:48.4]} 25. Qe2
{[%clk 0:01:33.8]} 25... Qa8+ {[%clk 0:00:46.4]} 26. Qf3 {[%clk 0:01:33.5]}
26... Rc8 {[%clk 0:00:43.2]} 27. Qxa8 {[%clk 0:01:22.7]} 27... Raxa8 {[%clk
0:00:45.1]} 28. Rd4 {[%clk 0:01:18.2]} 28... Nb3 {[%clk 0:00:35.7]} 29. axb3
{[%clk 0:01:10.2]} 29... Rxc3 {[%clk 0:00:35]} 30. b4 {[%clk 0:01:10.4]} 30...
Rb3 {[%clk 0:00:27.4]} 31. Bd2 {[%clk 0:01:06.6]} 31... Ra2 {[%clk 0:00:28.9]}
32. Ree4 {[%clk 0:01:01]} 32... h5 {[%clk 0:00:25.5]} 33. Rd7 {[%clk 0:00:52.3]}
33... Bf8 {[%clk 0:00:16.5]} 34. Rd8 {[%clk 0:00:49]} 34... Rbb2 {[%clk
0:00:08.3]} 35. Be3 {[%clk 0:00:48]} 1-0

[Event "*** MasterClass Titled Tuesday Blitz"]
[Site "Chess.com"]
[Date "2017.10.03"]
[Round "2"]
[White "BillieKimbah"]
[Black "Kouzari"]
[Result "1-0"]
[WhiteElo "2679"]
[BlackElo "2542"]
[TimeControl "180+2"]
[EndTime "13:23:14 PDT"]
[Termination "BillieKimbah won by resignation"]

1. d4 {[%clk 0:02:57.3]} 1... Nf6 {[%clk 0:03:00.8]} 2. Nf3 {[%clk 0:02:57.8]}
2... e6 {[%clk 0:03:02.7]} 3. c4 {[%clk 0:02:57.7]} 3... c5 {[%clk 0:03:04.6]}
4. e3 {[%clk 0:02:57.6]} 4... Be7 {[%clk 0:03:03.6]} 5. Nc3 {[%clk 0:02:57.7]}
5... O-O {[%clk 0:03:03.9]} 6. d5 {[%clk 0:02:57.9]} 6... exd5 {[%clk
0:03:04.6]} 7. cxd5 {[%clk 0:02:58.1]} 7... d6 {[%clk 0:03:06.1]} 8. Be2 {[%clk
0:02:56.6]} 8... a6 {[%clk 0:03:07.5]} 9. a4 {[%clk 0:02:57.1]} 9... Re8 {[%clk
0:03:06.6]} 10. O-O {[%clk 0:02:57.4]} 10... Nbd7 {[%clk 0:03:08.2]} 11. Nd2
{[%clk 0:02:57.3]} 11... Bf8 {[%clk 0:03:08.9]} 12. a5 {[%clk 0:02:55.1]} 12...
Ne5 {[%clk 0:03:08.4]} 13. h3 {[%clk 0:02:54.8]} 13... g5 {[%clk 0:03:07.6]} 14.
Na4 {[%clk 0:02:26.7]} 14... Bf5 {[%clk 0:03:05.5]} 15. Nb6 {[%clk 0:02:25.7]}
15... Rb8 {[%clk 0:03:06]} 16. Ra4 {[%clk 0:02:17.1]} 16... Nfd7 {[%clk
0:02:57.8]} 17. Nbc4 {[%clk 0:02:13.5]} 17... Nxc4 {[%clk 0:02:57.7]} 18. Nxc4
{[%clk 0:02:15.4]} 18... Nf6 {[%clk 0:02:38.3]} 19. Bd2 {[%clk 0:02:08]} 19...
Nxd5 {[%clk 0:02:31.3]} 20. Bf3 {[%clk 0:01:37.9]} 20... Nf6 {[%clk 0:02:00.5]}
21. Nb6 {[%clk 0:01:38.8]} 21... Bg7 {[%clk 0:01:35.5]} 22. Bc3 {[%clk
0:01:38.6]} 22... Bg6 {[%clk 0:01:27.7]} 23. Nc4 {[%clk 0:01:23.6]} 23... Re6
{[%clk 0:01:20.8]} 24. Nb6 {[%clk 0:01:09.8]} 24... Nd7 {[%clk 0:01:01.2]} 25.
Bg4 {[%clk 0:01:06.3]} 25... Nxb6 {[%clk 0:01:01]} 26. axb6 {[%clk 0:01:07.2]}
26... Bxc3 {[%clk 0:00:47.8]} 27. Bxe6 {[%clk 0:01:06.4]} 27... Bxb2 {[%clk
0:00:47.2]} 28. Qb3 {[%clk 0:01:03.5]} 28... Be5 {[%clk 0:00:41.7]} 29. Bd5
{[%clk 0:01:03.8]} 29... Kg7 {[%clk 0:00:41.9]} 30. f4 {[%clk 0:01:03.9]} 30...
gxf4 {[%clk 0:00:42.1]} 31. exf4 {[%clk 0:01:05.8]} 31... Bd4+ {[%clk
0:00:42.2]} 32. Rxd4 {[%clk 0:01:06.2]} 32... cxd4 {[%clk 0:00:44.1]} 33. f5
{[%clk 0:01:07.8]} 33... Bh5 {[%clk 0:00:43.2]} 34. g4 {[%clk 0:00:34.8]} 34...
Rc8 {[%clk 0:00:44.2]} 35. Qd3 {[%clk 0:00:28.8]} 35... Qxb6 {[%clk 0:00:40.2]}
36. gxh5 {[%clk 0:00:28]} 36... Rc3 {[%clk 0:00:41.7]} 37. f6+ {[%clk 0:00:29]}
37... Kh8 {[%clk 0:00:41.8]} 38. Qe4 {[%clk 0:00:28.9]} 38... d3+ {[%clk
0:00:36.8]} 39. Kh1 {[%clk 0:00:29.1]} 39... Qd8 {[%clk 0:00:34.7]} 40. Qe7
{[%clk 0:00:29.3]} 1-0

[Event "*** MasterClass Titled Tuesday Blitz"]
[Site "Chess.com"]
[Date "2017.10.03"]
[Round "2"]
[White "Jospem"]
[Black "gmcorrales"]
[Result "1-0"]
[WhiteElo "2559"]
[BlackElo "2647"]
[TimeControl "180+2"]
[EndTime "13:23:29 PDT"]
[Termination "Jospem won by checkmate"]

1. e4 {[%clk 0:02:59.9]} 1... c5 {[%clk 0:02:57.3]} 2. Nf3 {[%clk 0:03:01.2]}
2... d6 {[%clk 0:02:58.6]} 3. d4 {[%clk 0:03:02.7]} 3... cxd4 {[%clk 0:03:00.5]}
4. Nxd4 {[%clk 0:03:04.2]} 4... Nf6 {[%clk 0:03:01.3]} 5. Nc3 {[%clk 0:03:05.4]}
5... Nc6 {[%clk 0:03:02]} 6. Bg5 {[%clk 0:03:04.3]} 6... Bd7 {[%clk 0:03:00.2]}
7. Qd2 {[%clk 0:03:00.2]} 7... Rc8 {[%clk 0:02:59.6]} 8. O-O-O {[%clk
0:02:57.8]} 8... Nxd4 {[%clk 0:02:56.1]} 9. Qxd4 {[%clk 0:02:58.6]} 9... Qa5
{[%clk 0:02:56.8]} 10. Bd2 {[%clk 0:02:50.5]} 10... a6 {[%clk 0:02:23.3]} 11.
Kb1 {[%clk 0:02:49.3]} 11... Qc5 {[%clk 0:02:21.7]} 12. Qxc5 {[%clk 0:02:48.7]}
12... Rxc5 {[%clk 0:02:23.6]} 13. f3 {[%clk 0:02:49.6]} 13... e6 {[%clk
0:02:12.8]} 14. g4 {[%clk 0:02:50.4]} 14... h6 {[%clk 0:02:13.2]} 15. h4 {[%clk
0:02:50.7]} 15... Be7 {[%clk 0:02:13.5]} 16. Bd3 {[%clk 0:02:50.3]} 16... Rc8
{[%clk 0:01:07.7]} 17. Rhg1 {[%clk 0:02:46.8]} 17... Bc6 {[%clk 0:01:07.2]} 18.
g5 {[%clk 0:02:42.9]} 18... hxg5 {[%clk 0:01:07]} 19. hxg5 {[%clk 0:02:43.1]}
19... Nd7 {[%clk 0:01:08]} 20. g6 {[%clk 0:02:43.2]} 20... b5 {[%clk 0:00:48.3]}
21. a3 {[%clk 0:02:26.4]} 21... f6 {[%clk 0:00:44.7]} 22. Rh1 {[%clk 0:02:14.7]}
22... Rxh1 {[%clk 0:00:44.2]} 23. Rxh1 {[%clk 0:02:15.8]} 23... Ne5 {[%clk
0:00:45.5]} 24. Be2 {[%clk 0:02:16.1]} 24... Nxg6 {[%clk 0:00:45.9]} 25. f4
{[%clk 0:02:14.3]} 25... Kd7 {[%clk 0:00:44]} 26. Rg1 {[%clk 0:02:14.9]} 26...
Nh4 {[%clk 0:00:36.5]} 27. Rxg7 {[%clk 0:02:13.7]} 27... Rh8 {[%clk 0:00:37.3]}
28. Be1 {[%clk 0:02:06.8]} 28... Ke8 {[%clk 0:00:36.7]} 29. Bf2 {[%clk
0:01:09.5]} 29... f5 {[%clk 0:00:36.7]} 30. Bd4 {[%clk 0:01:07.7]} 30... Rh6
{[%clk 0:00:33.9]} 31. Rg8+ {[%clk 0:01:04.4]} 31... Kd7 {[%clk 0:00:23]} 32. e5
{[%clk 0:00:58.7]} 32... Rg6 {[%clk 0:00:19.7]} 33. Rh8 {[%clk 0:00:52.7]} 33...
Ng2 {[%clk 0:00:20.5]} 34. Bh5 {[%clk 0:00:47]} 34... Rg3 {[%clk 0:00:16.2]} 35.
Bb6 {[%clk 0:00:47.6]} 35... dxe5 {[%clk 0:00:14.5]} 36. fxe5 {[%clk 0:00:48.4]}
36... Bg5 {[%clk 0:00:06.9]} 37. Be8+ {[%clk 0:00:46.6]} 37... Ke7 {[%clk
0:00:06.4]} 38. Bc5+ {[%clk 0:00:47.7]} 38... Kd8 {[%clk 0:00:06.3]} 39. Bxc6+
{[%clk 0:00:48.6]} 39... Kc7 {[%clk 0:00:08.2]} 40. Ba8 {[%clk 0:00:45.4]} 40...
Ne3 {[%clk 0:00:08.6]} 41. Bd6+ {[%clk 0:00:46.2]} 41... Kb6 {[%clk 0:00:09.5]}
42. Rb8+ {[%clk 0:00:46.8]} 42... Ka7 {[%clk 0:00:10.8]} 43. Bc6 {[%clk
0:00:45.1]} 43... Nc4 {[%clk 0:00:11.9]} 44. Rb7+ {[%clk 0:00:45.2]} 44... Ka8
{[%clk 0:00:13.2]} 45. Rg7# {[%clk 0:00:45.4]} 1-0